bitfinex/quotes_SOLUSD_20240708
["timestamp","ask_amount","ask_price","bid_price","bid_amount"]
[1720439282562,7.0466,141.92,141.86,13.41837158]
[1720439282761,7.0449,141.95,141.86,6.36957158]
[1720439282960,7.0449,141.95,141.89,7.0473]
[1720439283163,7.0448,141.95,141.89,7.0473]
[1720439283387,17.6098,141.97,141.87,17.6213]
[1720439283571,7.0465,141.92,141.87,24.6698]
[1720439283884,0.17,141.98,141.85,6.2797]
[1720439283885,7.0472,141.9,141.85,6.2797]
[1720439284089,7.0479,141.89,141.85,6.2797]
[1720439284378,7.0483,141.88,141.82,4.96]
[1720439285260,7.0478,141.89,141.82,4.96]
[1720439285467,7.0473,141.9,141.83,19.03556994]
[1720439286280,16.0021,141.93,141.87,7.0486]
[1720439286487,23.0478,141.93,141.88,7.0482]
[1720439287074,23.0478,141.93,141.87,24.6697]
[1720439287387,16.0021,141.93,141.84,17.6244]
[1720439287559,16.0021,141.93,141.85,1.40967115]
[1720439287759,7.0472,141.9,141.86,1.40967891]
[1720439287959,16.0021,141.93,141.86,1.40967891]
[1720439288173,16.0021,141.93,141.87,7.0483]
[1720439288420,23.0481,141.93,141.88,8.45758019]
[1720439288769,7.046,141.93,141.88,8.45758019]
[1720439289462,32.9879,141.97,141.9,7.0472]
[1720439289663,7.0448,141.95,141.91,1.40917658]
[1720439290369,7.0443,141.96,141.91,8.45567658]
[1720439290579,273.4134,142.01,141.91,1.40917658]
[1720439290876,15.8134,142.05,141.92,0.17]
[1720439291081,7.0411,142.03,141.98,7.0431]
[1720439291586,7.0414,142.02,141.97,8.45207628]
[1720439291792,15.8134,142.05,141.96,17.6103]
[1720439291966,15.8134,142.05,141.92,0.17]
[1720439291967,7.0423,142.0,141.95,7.0446]
[1720439292367,7.0418,142.01,141.96,8.45272654]
[1720439292570,7.0413,142.02,141.97,8.45220844]
[1720439292792,7.0412,142.03,141.97,8.45220844]
[1720439292982,7.0403,142.04,141.97,1.40860844]
[1720439293306,7.0418,142.01,141.97,17.609]
[1720439293475,15.8134,142.05,141.93,7.0452]
[1720439293476,7.0428,141.99,141.93,7.0452]
[1720439293808,15.8134,142.05,141.91,8.45530142]
[1720439293809,53.5034,142.05,141.91,8.45530142]
[1720439294096,7.0453,141.94,141.9,6.053]
[1720439294299,7.0459,141.93,141.87,1.40926889]
[1720439294501,7.0453,141.94,141.87,19.00646889]
[1720439294708,7.0458,141.93,141.87,1.40926889]
[1720439295003,7.0464,141.92,141.87,8.45776889]
[1720439295203,17.6123,141.95,141.86,6.3725]
[1720439295373,0.17,141.94,141.82,25.36516472]
[1720439295591,7.048,141.89,141.83,7.0503]
[1720439295774,17.6151,141.93,141.84,8.45992866]
[1720439295975,7.0461,141.93,141.87,7.0486]
[1720439296198,7.0453,141.94,141.89,7.0472]
[1720439296396,7.0453,141.94,141.89,8.45654966]
[1720439296917,16.5757,141.97,141.89,1.40934966]
[1720439297115,7.0448,141.95,141.89,8.45694966]
[1720439297292,7.0462,141.93,141.89,1.40934966]
[1720439297603,34.1862,141.97,141.89,7.0475]
[1720439297797,7.046,141.93,141.87,17.6214]
[1720439298178,7.046,141.93,141.87,24.6699]
[1720439298387,7.046,141.93,141.88,8.4575539]
[1720439298780,7.0454,141.94,141.88,8.4575539]
[1720439298996,16.5757,141.97,141.88,1.4094539]
[1720439299214,16.5757,141.97,141.82,142.5681]
[1720439299215,7.0445,141.96,141.84,100.0]
[1720439299507,7.0445,141.96,141.9,7.0468]
[1720439299705,16.5757,141.97,141.91,1.40915552]
[1720439299706,7.0448,141.95,141.91,1.40915552]
[1720439299996,16.5757,141.97,141.89,17.6187]
[1720439300304,7.0458,141.93,141.87,7.0485]
[1720439300479,7.0458,141.93,141.88,7.048]
[1720439300679,16.5757,141.97,141.88,7.048]
[1720439300978,7.047,141.91,141.86,17.622]
[1720439301180,16.5757,141.97,141.82,6.3281]
[1720439301181,37.8157,141.97,141.82,6.3281]
[1720439301506,7.0488,141.87,141.81,7.0512]
[1720439301684,7.0494,141.86,141.81,1.40997912]
[1720439301899,7.0494,141.86,141.81,7.0513]
[1720439302088,7.0494,141.86,141.8,24.6814]
[1720439302392,7.0488,141.87,141.82,7.0509]
[1720439302589,6.1377,141.92,141.83,1.410055]
[1720439302774,7.0472,141.9,141.85,7.0494]
[1720439302979,7.0467,141.91,141.86,7.0491]
[1720439303188,7.0467,141.91,141.86,1.40966664]
[1720439303380,7.0472,141.9,141.86,1.40966664]
[1720439303999,7.0469,141.91,141.86,1.40966664]
[1720439304302,7.0459,141.93,141.87,7.0485]
[1720439304483,7.0453,141.94,141.88,8.45747211]
[1720439304881,7.0459,141.93,141.88,7.048]
[1720439305121,7.0463,141.92,141.8,100.0]
[1720439305406,17.6123,141.95,141.85,7.0495]
[1720439305607,17.6123,141.95,141.86,7.0492]
[1720439305782,7.0468,141.91,141.86,7.0492]
[1720439305979,7.0468,141.91,141.85,17.6238]
[1720439305980,7.0472,141.9,141.85,24.6733]
[1720439306207,35.2256,141.95,141.82,17.6269]
[1720439306512,35.2256,141.95,141.84,17.625]
[1720439306513,20.17,141.94,141.84,17.625]
[1720439306701,20.17,141.94,141.85,1.40969609]
[1720439306908,7.0475,141.9,141.85,7.0495]
[1720439307306,7.0478,141.89,141.85,1.40969633]
[1720439309318,6.5487,141.96,141.78,106.4067]
[1720439309319,7.0463,141.92,141.87,13.1648]
[1720439309623,6.5487,141.96,141.88,1.4093966]
[1720439309939,6.5487,141.96,141.88,19.0297966]
[1720439310429,7.0458,141.93,141.88,26.0775966]
[1720439310632,7.0462,141.92,141.89,1.40939722]
[1720439310838,6.5487,141.96,141.88,17.6204]
[1720439310839,7.0467,141.91,141.88,1.40939697]
[1720439311020,7.0467,141.91,141.87,6.1166]
[1720439311545,7.0474,141.9,141.85,17.6232]
[1720439311700,7.0474,141.9,141.85,24.6726]
[1720439311900,24.1603,141.96,141.85,17.6232]
[1720439312232,17.6136,141.94,141.85,17.6232]
[1720439312530,7.0495,141.86,141.83,6.6516]
[1720439312822,17.6205,141.88,141.8,13.0767]
[1720439313237,17.6205,141.88,141.8,6.0246]
[1720439313396,6.5722,141.88,141.77,7.95673166]
[1720439313601,6.5722,141.88,141.73,6.5465]
[1720439313602,7.0535,141.78,141.73,6.5465]
[1720439313907,7.0523,141.8,141.74,1.41085911]
[1720439314130,7.0503,141.84,141.78,7.0527]
[1720439314319,7.0498,141.85,141.79,1.4103059]
[1720439314501,7.0503,141.84,141.79,24.6835]
[1720439314711,7.0503,141.84,141.8,1.40961615]
[1720439314918,33.6346,141.89,141.8,8.46151615]
[1720439315236,33.6346,141.89,141.8,1.40961615]
[1720439315412,0.17,141.88,141.79,19.04061615]
[1720439315611,7.0503,141.84,141.8,1.40951674]
[1720439315926,7.0507,141.83,141.79,19.04128264]
[1720439316308,7.0517,141.81,141.76,17.6347]
[1720439316536,17.6247,141.85,141.76,24.6888]
[1720439316843,7.0508,141.83,141.77,7.0536]
[1720439317213,7.0508,141.83,141.77,8.46407171]
[1720439317413,7.0508,141.83,141.77,7.0536]
[1720439317636,17.6247,141.85,141.76,17.6347]
[1720439317844,7.052,141.81,141.76,17.6347]
[1720439318339,7.052,141.81,141.76,24.6886]
[1720439318530,17.6273,141.83,141.73,24.185]
[1720439319033,7.0525,141.8,141.73,24.185]
[1720439319221,7.0528,141.79,141.73,24.185]
[1720439319732,6.5623,141.84,141.73,6.5465]
[1720439319922,7.0516,141.81,141.75,17.6363]
[1720439320326,7.0516,141.81,141.76,1.34068198]
[1720439320527,7.0516,141.81,141.77,1.34058741]
[1720439321350,7.0522,141.8,141.76,1.41056118]
[1720439321528,7.0522,141.8,141.75,24.6908]
[1720439321842,7.0522,141.8,141.75,17.6363]
[1720439322339,7.0522,141.8,141.75,24.6909]
[1720439322537,7.0518,141.81,141.75,24.6909]
[1720439322848,7.0518,141.81,141.76,7.054]
[1720439323026,7.0523,141.8,141.75,24.6908]
[1720439323741,7.0518,141.81,141.76,7.0541]
[1720439324114,7.0511,141.83,141.78,7.0531]
[1720439324541,7.0511,141.83,141.79,7.0526]
[1720439324932,7.0503,141.84,141.79,7.0526]
[1720439325242,7.0503,141.84,141.8,1.41027029]
[1720439325424,7.0507,141.83,141.79,1.41029459]
[1720439325623,17.6248,141.85,141.74,17.6368]
[1720439325971,35.2503,141.85,141.73,6.5465]
[1720439326147,20.0,141.84,141.73,6.5465]
[1720439326327,7.0542,141.76,141.73,6.5465]
[1720439326945,7.0538,141.77,141.73,6.5465]
[1720439327243,17.6317,141.79,141.7,6.1275]
[1720439327450,7.0555,141.74,141.7,6.1275]
[1720439327624,7.0561,141.73,141.7,6.1275]
[1720439327819,7.0552,141.74,141.7,6.1275]
[1720439328738,7.0548,141.75,141.7,13.1845]
[1720439329040,7.0545,141.76,141.71,7.42538428]
[1720439329250,7.0537,141.77,141.72,7.64517697]
[1720439329543,17.6273,141.83,141.72,0.84306476]
[1720439329760,7.0528,141.79,141.74,24.6924]
[1720439330048,7.0524,141.8,141.75,7.89864844]
[1720439330937,7.0527,141.79,141.75,1.25659781]
[1720439332240,7.0523,141.8,141.75,8.31119781]
[1720439332441,17.6273,141.83,141.75,1.25659781]
[1720439333025,17.6273,141.83,141.75,8.31119781]
[1720439333228,22.5568,141.85,141.76,7.0537]
[1720439333431,7.0518,141.81,141.77,1.25806251]
[1720439333723,35.2516,141.84,141.71,17.6406]
[1720439333925,0.17,141.83,141.71,17.6406]
[1720439334431,7.0539,141.77,141.72,7.056]
[1720439334752,7.0542,141.76,141.71,24.697]
[1720439335052,0.17,141.83,141.68,17.6444]
[1720439335053,16.507,141.77,141.68,17.6444]
[1720439335249,16.507,141.77,141.68,24.7022]
[1720439335459,7.0557,141.73,141.69,7.0575]
[1720439335746,51.5129,141.81,141.7,17.6427]
[1720439335929,7.0538,141.77,141.72,7.056]
[1720439336127,7.0542,141.76,141.71,8.46747873]
[1720439336352,7.0546,141.75,141.71,1.41107873]
[1720439337029,7.0543,141.76,141.71,8.46767873]
[1720439337534,7.0546,141.75,141.71,8.46767873]
[1720439337852,7.0543,141.76,141.71,8.46767873]
[1720439338053,7.0547,141.75,141.71,8.46781891]
[1720439338231,7.0543,141.76,141.71,8.46781891]
[1720439338550,7.0526,141.8,141.71,1.41121891]
[1720439338759,39.3016,141.85,141.74,17.6371]
[1720439339060,17.6271,141.83,141.75,1.41068127]
[1720439339245,7.053,141.79,141.75,1.41068127]
[1720439339631,17.6271,141.83,141.75,1.41068127]
[1720439339958,7.053,141.79,141.75,1.41068127]
[1720439340256,21.6763,141.85,141.75,1.41068127]
[1720439340558,7.0519,141.81,141.76,7.0538]
[1720439340751,7.0519,141.81,141.77,1.41054031]
[1720439341645,7.0515,141.82,141.77,8.46394031]
[1720439341840,7.0498,141.85,141.8,7.0517]
[1720439342040,7.0498,141.85,141.81,1.41013024]
[1720439342255,7.0502,141.84,141.8,1.41016363]
[1720439343143,17.6234,141.86,141.79,6.4907]
[1720439343348,51.0473,141.89,141.76,6.6112]
[1720439343349,7.0523,141.8,141.76,6.6112]
[1720439343733,7.0523,141.8,141.76,8.02189603]
[1720439344051,7.0513,141.82,141.77,8.46428395]
[1720439344432,17.6263,141.84,141.77,8.46428395]
[1720439344433,7.0506,141.84,141.78,7.0531]
[1720439344657,7.0507,141.83,141.78,8.46349293]
[1720439345359,15.8071,141.89,141.79,17.631]
[1720439345727,7.0507,141.83,141.79,17.631]
[1720439345930,7.0518,141.81,141.76,31.2995]
[1720439346143,37.86,141.88,141.73,17.6382]
[1720439346446,7.0536,141.78,141.73,24.6938]
[1720439346658,17.6281,141.82,141.74,7.055]
[1720439346659,7.0528,141.79,141.74,7.055]
[1720439346874,7.0528,141.79,141.74,8.46571133]
[1720439347032,7.0521,141.8,141.75,17.6365]
[1720439347357,7.0521,141.8,141.76,1.4105123]
[1720439347558,6.2774,141.84,141.75,24.6908]
[1720439347748,7.0536,141.77,141.73,1.41033263]
[1720439347948,7.0536,141.77,141.72,31.2316]
[1720439348150,7.0536,141.77,141.73,1.4108195]
[1720439348658,7.0532,141.78,141.73,8.4664195]
[1720439349178,17.6318,141.79,141.69,23.8755]
[1720439349335,0.17,141.78,141.69,6.2323]
[1720439349542,7.0556,141.73,141.69,6.2323]
[1720439349759,7.0556,141.73,141.69,7.64360875]
[1720439350259,17.8037,141.78,141.66,22.6072]
[1720439350260,7.0565,141.72,141.67,1.41131344]
[1720439350563,7.0557,141.73,141.67,8.46971344]
[1720439351063,7.0561,141.72,141.67,8.46971344]
[1720439351235,7.0566,141.71,141.67,1.41131344]
[1720439351653,7.0563,141.72,141.67,1.41131344]
[1720439352136,7.0563,141.72,141.66,30.9955]
[1720439352137,7.0577,141.69,141.66,6.2893]
[1720439352338,7.0573,141.7,141.66,6.2893]
[1720439352747,7.0573,141.7,141.65,8.47127325]
[1720439353250,17.6407,141.72,141.63,17.6507]
[1720439353470,7.0585,141.68,141.63,24.7113]
[1720439353767,0.17,141.71,141.62,6.5571]
[1720439353939,0.17,141.71,141.6,8.47382245]
[1720439353940,17.6459,141.68,141.6,8.47382245]
[1720439354147,7.0593,141.66,141.61,8.47370966]
[1720439354452,7.0596,141.65,141.61,1.41210966]
[1720439354757,0.17,141.69,141.61,19.06590966]
[1720439354966,7.0583,141.68,141.61,19.06590966]
[1720439355139,7.0583,141.68,141.63,7.0606]
[1720439355474,7.0577,141.69,141.64,8.47193185]
[1720439355760,17.6408,141.72,141.65,1.41172246]
[1720439355935,17.6408,141.72,141.64,1.41178262]
[1720439356137,7.0585,141.68,141.64,1.41178262]
[1720439356463,17.6438,141.7,141.6,24.7163]
[1720439356637,17.6438,141.7,141.61,1.41195392]
[1720439357271,7.0592,141.66,141.61,8.47325392]
[1720439357569,0.17,141.71,141.62,17.6523]
[1720439357861,17.6422,141.71,141.62,19.06414914]
[1720439358068,0.17,141.7,141.59,19.06773404]
[1720439358249,7.0598,141.65,141.6,7.062]
[1720439358444,7.0592,141.66,141.61,8.47333461]
[1720439359259,7.0596,141.65,141.61,1.41183461]
[1720439359649,7.0601,141.64,141.61,1.41183461]
[1720439359848,7.0598,141.65,141.61,1.41183461]
[1720439360645,7.0581,141.68,141.63,17.6514]
[1720439360977,7.0573,141.7,141.65,7.0596]
[1720439361175,7.0568,141.71,141.66,8.40773988]
[1720439361844,7.0573,141.7,141.66,1.34863988]
[1720439362044,15.0816,141.74,141.64,6.6254]
[1720439362045,17.642,141.71,141.64,6.6254]
[1720439362244,17.642,141.71,141.62,17.6519]
[1720439362548,7.0596,141.65,141.62,1.41199254]
[1720439363172,7.06,141.65,141.62,1.41199254]
[1720439363467,7.0593,141.66,141.62,8.47309254]
[1720439363672,7.0588,141.67,141.62,8.47309254]
[1720439363869,7.0588,141.67,141.62,1.41199254]
[1720439364167,7.0583,141.68,141.64,7.0601]
[1720439364475,7.0571,141.7,141.65,26.120134]
[1720439364652,15.0816,141.74,141.66,8.47035178]
[1720439364956,15.0816,141.74,141.67,24.7049]
[1720439365268,15.0816,141.74,141.68,1.41148371]
[1720439365453,7.0562,141.72,141.68,1.41148371]
[1720439366747,7.0557,141.73,141.68,1.41148371]
[1720439367046,15.3821,141.82,141.69,6.4724]
[1720439367267,7.0526,141.8,141.74,7.0548]
[1720439367581,37.69,141.86,141.7,21.58071269]
[1720439367582,33.4785,141.86,141.75,19.04652693]
[1720439367878,17.6258,141.84,141.75,19.04652693]
[1720439369055,17.6258,141.84,141.75,26.10112693]
[1720439369254,7.0518,141.81,141.76,1.41030486]
[1720439369560,7.0518,141.81,141.77,1.41020538]
[1720439369749,7.0518,141.81,141.76,13.4896]
[1720439370776,7.0524,141.8,141.76,6.4356]
[1720439370999,17.6258,141.84,141.73,13.5409]
[1720439371192,7.0533,141.78,141.73,13.5409]
[1720439371546,7.0537,141.77,141.73,6.4855]
[1720439372174,7.0532,141.78,141.73,13.5409]
[1720439373461,7.0532,141.78,141.74,1.00518309]
[1720439373679,7.0532,141.78,141.74,1.41083107]
[1720439374360,7.0532,141.78,141.73,14.95173087]
[1720439374564,35.2486,141.85,141.7,4.96]
[1720439374565,17.6314,141.8,141.7,4.96]
[1720439374757,0.17,141.79,141.71,1.41101118]
[1720439374964,7.0543,141.76,141.71,8.46751118]
[1720439375568,7.0538,141.77,141.72,7.0561]
[1720439376581,7.0533,141.78,141.73,1.41100702]
[1720439376962,7.0533,141.78,141.74,1.41093495]
[1720439377367,7.0528,141.79,141.74,8.46603495]
[1720439377563,17.6276,141.83,141.7,4.96]
[1720439377564,7.0532,141.78,141.73,24.6942]
[1720439377973,17.6299,141.81,141.72,1.41082203]
[1720439378172,7.0548,141.75,141.7,29.6596]
[1720439378381,7.0543,141.76,141.71,7.0566]
[1720439378683,7.0546,141.75,141.7,22.6025]
[1720439378873,7.0546,141.75,141.7,29.6596]
[1720439379479,33.0003,141.79,141.7,17.6425]
[1720439379662,0.17,141.78,141.7,17.6425]
[1720439379980,7.055,141.75,141.7,26.11060992]
[1720439380359,7.0552,141.74,141.69,13.4368]
[1720439382572,7.0552,141.74,141.7,8.46833301]
[1720439382781,7.054,141.77,141.72,7.0556]
[1720439382981,7.054,141.77,141.72,6.044227]
[1720439384171,7.054,141.77,141.73,8.46655766]
[1720439384373,7.0526,141.79,141.73,1.41079872]
[1720439384586,7.0526,141.79,141.74,8.46549928]
[1720439384884,7.0537,141.77,141.73,17.6383]
[1720439385083,7.0548,141.75,141.72,1.41090874]
[1720439385392,7.0548,141.75,141.71,1.41096616]
[1720439385561,7.0543,141.76,141.71,8.46756616]
[1720439386362,7.0542,141.76,141.72,0.72525257]
[1720439386569,7.0538,141.77,141.72,8.46703472]
[1720439386769,7.0533,141.78,141.73,7.0553]
[1720439387286,7.0537,141.77,141.72,26.10673472]
[1720439387963,7.0541,141.76,141.72,1.41103472]
[1720439388165,7.0541,141.76,141.71,7.0565]
[1720439388372,7.0541,141.76,141.71,8.46753597]
[1720439388893,51.1426,141.83,141.71,8.46753597]
[1720439388894,7.0515,141.82,141.72,0.17]
[1720439389068,7.0502,141.84,141.79,7.0526]
[1720439389258,15.5003,141.87,141.8,1.40976882]
[1720439389461,15.5306,141.91,141.76,1.40976882]
[1720439389661,7.049,141.87,141.81,7.0516]
[1720439389868,7.0492,141.86,141.8,7.052]
[1720439390087,7.0492,141.86,141.81,1.41006831]
[1720439390289,7.0487,141.87,141.81,8.46166831]
[1720439390495,15.5306,141.91,141.81,19.03836831]
[1720439390790,15.5306,141.91,141.82,1.4099571]
[1720439391006,15.5306,141.91,141.81,17.6283]
[1720439391295,7.0491,141.87,141.81,24.6795]
[1720439391504,7.0492,141.86,141.81,17.6283]
[1720439391674,7.0497,141.85,141.79,7.0526]
[1720439391877,7.0503,141.84,141.78,24.6856]
[1720439392195,7.0503,141.84,141.79,1.41031638]
[1720439392501,7.0508,141.83,141.78,17.6325]
[1720439393010,7.0512,141.82,141.78,17.6325]
[1720439393301,7.0504,141.84,141.79,1.41043471]
[1720439393599,17.6256,141.84,141.75,6.2982]
[1720439393777,0.17,141.85,141.76,1.41051325]
[1720439393981,7.0508,141.83,141.77,8.46365259]
[1720439394276,7.0509,141.83,141.77,7.0531]
[1720439394509,7.0509,141.83,141.78,17.6322]
[1720439394680,0.17,141.86,141.78,7.0529]
[1720439394983,7.0503,141.84,141.78,7.0529]
[1720439395183,7.0497,141.85,141.79,7.0526]
[1720439395383,7.0497,141.85,141.8,7.0521]
[1720439395584,7.0488,141.87,141.81,7.0515]
[1720439395789,17.6186,141.9,141.81,0.98310767]
[1720439395991,17.621,141.88,141.79,17.6312]
[1720439396182,7.0517,141.81,141.76,17.6347]
[1720439396586,7.0522,141.8,141.76,17.6347]
[1720439396784,7.0522,141.8,141.75,13.3527]
[1720439397105,7.0522,141.8,141.75,6.2982]
[1720439397270,7.0528,141.79,141.75,6.2982]
[1720439397477,7.0528,141.79,141.75,6.68373925]
[1720439397810,7.0527,141.79,141.75,6.2982]
[1720439397969,7.0532,141.78,141.73,17.6384]
[1720439398176,15.2405,141.83,141.72,6.3035]
[1720439398177,7.0543,141.76,141.72,6.3035]
[1720439398490,7.0543,141.76,141.7,7.0571]
[1720439398688,7.0543,141.76,141.71,1.411128]
[1720439398887,7.0537,141.77,141.71,8.467628]
[1720439399082,7.053,141.79,141.71,1.411128]
[1720439399300,7.0523,141.8,141.74,7.055]
[1720439399593,7.0523,141.8,141.72,17.6395]
[1720439399594,7.0538,141.77,141.73,1.41087558]
[1720439399796,17.6297,141.81,141.72,19.05047512]
[1720439399975,7.0538,141.77,141.72,19.05047512]
[1720439400174,7.0532,141.78,141.72,26.10647512]
[1720439400377,7.0528,141.79,141.74,7.0547]
[1720439400609,15.2405,141.83,141.68,106.3035]
[1720439400610,15.2405,141.83,141.69,1.41070894]
[1720439400779,17.6312,141.8,141.7,7.057]
[1720439401106,7.0543,141.76,141.71,1.41107128]
[1720439401298,7.0548,141.75,141.69,24.7015]
[1720439401597,7.0561,141.72,141.68,6.3035]
[1720439401894,7.0558,141.73,141.68,6.3035]
[1720439402100,7.0558,141.73,141.68,13.3615]
[1720439402280,7.0552,141.74,141.69,7.5750316]
[1720439402997,7.0548,141.75,141.69,7.5750316]
[1720439403300,7.0541,141.76,141.69,0.5175316]
[1720439403606,7.0538,141.77,141.71,7.0566]
[1720439403913,7.0518,141.81,141.75,7.0545]
[1720439404193,7.25141704,141.88,141.76,6.62107606]
[1720439404194,34.1324,141.87,141.76,6.62107606]
[1720439404403,34.1324,141.87,141.77,0.69242434]
[1720439404578,7.0507,141.83,141.77,8.46388879]
[1720439404785,16.5101,141.87,141.73,4.96]
[1720439404987,7.0528,141.79,141.74,1.410699]
[1720439405307,7.0519,141.81,141.75,7.2242]
[1720439405509,7.0519,141.81,141.76,1.41047113]
[1720439405685,7.0519,141.81,141.77,1.41037163]
[1720439406102,7.0516,141.81,141.77,1.41037163]
[1720439406683,16.5101,141.87,141.76,1.41047292]
[1720439406891,24.57357364,141.86,141.77,1.41047312]
[1720439407099,0.17,141.85,141.77,1.41047312]
[1720439407604,7.0497,141.85,141.77,1.41047312]
[1720439407803,7.0497,141.85,141.79,7.0525]
[1720439408002,7.0497,141.85,141.78,17.8022]
[1720439408003,7.0482,141.88,141.8,25.59135582]
[1720439408216,15.1507,141.91,141.83,7.0503]
[1720439408542,15.3178,141.95,141.85,7.0496]
[1720439408683,7.0476,141.9,141.86,1.40967648]
[1720439408879,15.3178,141.95,141.81,4.96]
[1720439409085,4.57118571,141.94,141.81,4.96]
[1720439409399,4.57143999,141.93,141.8,6.5518]
[1720439409706,56.88341336,141.95,141.81,1.41009597]
[1720439409707,4.57143999,141.92,141.81,1.41009597]
[1720439409908,7.0506,141.84,141.81,1.41009597]
[1720439410109,7.0506,141.84,141.8,6.5518]
[1720439410286,7.0497,141.85,141.8,6.5518]
[1720439410605,7.0488,141.87,141.82,7.051]
[1720439410922,7.0488,141.87,141.81,8.14262166]
[1720439411220,17.6197,141.89,141.81,1.09132166]
[1720439411382,7.0517,141.81,141.77,17.6334]
[1720439411709,15.3741,141.86,141.76,6.2099]
[1720439411710,7.0522,141.8,141.76,6.2099]
[1720439411911,7.0516,141.82,141.76,13.2639]
[1720439412205,7.0506,141.83,141.78,7.0531]
[1720439412424,7.0506,141.83,141.79,1.41035181]
[1720439413296,6.6448,141.9,141.8,1.41035369]
[1720439413489,7.0492,141.86,141.81,7.0515]
[1720439413823,6.6448,141.9,141.76,6.2099]
[1720439413824,35.2399,141.89,141.76,6.2099]
[1720439413998,17.6247,141.85,141.76,6.2099]
[1720439414202,17.6247,141.85,141.76,23.8447]
[1720439414398,17.6247,141.85,141.77,7.0532]
[1720439414718,35.2399,141.89,141.77,1.41044386]
[1720439414719,7.0517,141.81,141.77,1.41044386]
[1720439415819,37.69,141.88,141.77,1.41044386]
[1720439416035,7.05,141.85,141.79,7.0522]
[1720439416313,7.0488,141.87,141.8,1.41014554]
[1720439416492,7.0481,141.89,141.8,1.41014554]
[1720439416694,7.0481,141.89,141.83,7.0505]
[1720439417006,17.6125,141.95,141.85,6.1667]
[1720439417198,7.0473,141.9,141.86,1.4095491]
[1720439417398,7.0478,141.89,141.85,6.1667]
[1720439417692,7.0486,141.88,141.83,1.40976699]
[1720439417916,7.0487,141.87,141.83,1.40976699]
[1720439418417,7.0487,141.87,141.82,13.0662]
[1720439418919,17.614,141.94,141.82,6.0152]
[1720439419091,17.614,141.94,141.86,7.0488]
[1720439419289,7.0447,141.95,141.9,7.047]
[1720439419497,15.5065,141.96,141.91,19.02555918]
[1720439419711,7.0451,141.95,141.89,7.0473]
[1720439419914,15.5065,141.96,141.87,0.69082279]
[1720439420119,7.045,141.95,141.89,7.0476]
[1720439420298,7.0457,141.93,141.88,7.048]
[1720439420995,7.0453,141.94,141.89,1.40926125]
[1720439421217,7.0457,141.93,141.89,1.40926117]
[1720439421416,15.5065,141.96,141.89,7.0477]
[1720439421625,7.0448,141.95,141.9,1.40917184]
[1720439421800,15.5065,141.96,141.9,1.40917184]
[1720439421995,7.0448,141.95,141.9,8.45627184]
[1720439422320,7.0453,141.94,141.89,24.6662]
[1720439422618,7.0459,141.93,141.89,17.6187]
[1720439422920,7.0459,141.93,141.88,7.0481]
[1720439423222,7.0459,141.93,141.88,7.048]
[1720439423223,7.0457,141.93,141.88,7.048]
[1720439423421,15.5065,141.96,141.88,7.048]
[1720439423422,7.0451,141.95,141.9,7.0471]
[1720439424020,7.0451,141.95,141.9,1.409256]
[1720439424228,22.5508,141.96,141.9,8.456256]
[1720439425199,7.0447,141.95,141.9,1.409256]
[1720439425525,7.0459,141.93,141.88,17.6198]
[1720439425729,7.0453,141.94,141.88,19.02915837]
[1720439426021,15.5065,141.96,141.89,7.0472]
[1720439426401,15.5065,141.96,141.89,8.45651743]
[1720439426811,7.0453,141.94,141.89,1.40931743]
[1720439427642,7.0458,141.93,141.89,1.40931743]
[1720439427932,7.0446,141.96,141.89,6.1368]
[1720439428126,7.0446,141.96,141.9,8.4559179]
[1720439428445,7.0446,141.96,141.91,7.0465]
[1720439428744,7.0446,141.96,141.92,1.40891933]
[1720439429334,15.8781,142.0,141.93,1.40882006]